fUSD/lending_fUSD_20240929
["ID","MTS","AMOUNT","RATE_DAILY","PERIOD"]
[339447754,1727618581866,-5000.0,0.00039571,30]
[339447755,1727618581916,-18575.25867293,0.00039595,30]
[339447756,1727618581967,-200.0,0.00039597,30]
[339447757,1727618582022,-3012.0,0.000396,120]
[339447758,1727618582072,-11908.00536,0.00039608,30]
[339447759,1727618582125,-2797.0,0.0003961,30]
[339447760,1727618582175,-200.0,0.00039618,30]
[339447761,1727618582232,-240.76,0.00039622,30]
[339447762,1727618582282,-18575.25867293,0.0003963,30]
[339447763,1727618582333,-5000.0,0.00039636,30]
[339447764,1727618582383,-139103.09954423,0.00039658,30]
[339447765,1727618582434,-15461.76833836,0.00039669,30]
[339447766,1727618582485,-372.21,0.00039675,30]
[339447767,1727618582531,-428.73416275,0.00039687,30]
[339447768,1727618582579,-428.73416275,0.00039691,30]
[339447769,1727618582624,-1592.05182845,0.00039698,30]
[339447770,1727618582671,-5000.0,0.00039737,30]
[339447771,1727618582717,-1256.51,0.00039744,30]
[339447772,1727618582765,-3677.5081343,0.0003976,120]
[339447773,1727618582811,-5000.0,0.00039773,30]
[339447774,1727618582856,-5000.0,0.00039783,30]
[339447775,1727618582900,-20000.0,0.000398,30]
[339447776,1727618582947,-8133.13678732,0.000398,90]
[339447777,1727618582991,-3042.40939765,0.000398,120]
[339447778,1727618583038,-3755.73915729,0.000398,120]
[339447779,1727618583084,-11908.00536,0.00039808,30]
[339447780,1727618583131,-5000.0,0.00039809,30]
[339447781,1727618583181,-1520983.23910523,0.0003983,30]
[339447782,1727618586652,-1000.0,0.00039589,120]
[339447783,1727618586697,-3479015.76089477,0.0003983,30]
[339447784,1727618586742,-1519984.23910523,0.0003983,30]
[339447785,1727618590558,-271.419,0.00039013,30]
[339447786,1727618590603,-3201241.45898927,0.0003983,30]
[339447787,1727618590649,-1798487.12201073,0.0003983,30]
[339447789,1727618594064,-2631764.52501837,0.0003983,30]
[339447790,1727618594117,-1515183.8017137,0.0003983,30]
[339447791,1727618594164,-450990.00000005,0.0003983,30]
[339447792,1727618594210,-402061.67326788,0.0003983,30]
[339447793,1727618606966,-150.0,0.00039182,30]
[339447794,1727618607011,-48928.32673212,0.0003983,30]
[339447795,1727618607056,-2160971.8146349,0.0003983,30]
[339447796,1727618607099,-544968.17698037,0.0003983,30]
[339447797,1727618607143,-3945.27,0.0003985,30]
[339447798,1727618607186,-1800000.0,0.0003986,120]
[339447799,1727618607228,-30000.0,0.0003986,120]
[339447800,1727618607269,-800.0,0.00039876,120]
[339447801,1727618607312,-13246.9009703,0.0003988,30]
[339447802,1727618607353,-5000.0,0.00039885,75]
[339447803,1727618607396,-411.0,0.00039886,90]
[339447804,1727618607438,-5000.0,0.00039887,30]
[339447805,1727618607480,-46660.31018226,0.000399,60]
[339447806,1727618607524,-1303.18711629,0.000399,120]
[339447807,1727618607566,-157694.01855944,0.000399,30]
[339447808,1727618607610,-4504.96,0.00039904,30]
[339447809,1727618607656,-151.0,0.00039945,120]
[339447810,1727618607702,-5000.0,0.0003996,30]
[339447811,1727618607748,-5000.0,0.00039965,30]
[339447812,1727618607794,-196.0369732,0.0003998,30]
[339447813,1727618607840,-1558.19,0.00039986,30]
[339447814,1727618607884,-411.0,0.00039986,90]
[339447815,1727618607928,-35677.17596486,0.0003999,120]
[339447816,1727618607972,-2712.78,0.0003999,120]
[339447817,1727618608015,-200.0,0.00039999,30]
[339447818,1727618608062,-50000.0,0.0004,30]
[339447819,1727618608109,-50000.0,0.0004,40]
[339447820,1727618608154,-25070.4164022,0.0004,30]
[339447821,1727618608201,-439.43548406,0.0004,120]
[339447822,1727618613894,-898.83,9.921e-05,2]
[339447823,1727618613914,-494.77243153,9.985e-05,2]
[339447824,1727618613935,-2606.39756847,0.0001,2]
[339447825,1727618654456,-194.0,0.00029598,30]
[339447826,1727618654493,-194.0,0.00029598,30]
[339447827,1727618654528,-194.0,0.00029598,30]
[339447828,1727618654563,-200.0,0.00029598,30]
[339447829,1727618654597,-253.0,0.00029598,30]
[339447830,1727618654631,-160.0,0.00029598,30]
[339447831,1727618654664,-150.0,0.00029598,30]
[339447832,1727618654700,-931.0,0.00029598,30]
[339447833,1727618654735,-3000.0,0.00029598,120]
[339447834,1727618654769,-1327.26,0.00029598,120]
[339447835,1727618654804,-1327.26,0.00029598,120]
[339447836,1727618654837,-1327.26,0.00029598,120]
[339447837,1727618654871,-1327.26,0.00029598,120]
[339447838,1727618654905,-1327.26,0.00029598,120]
[339447839,1727618654944,-1327.26,0.00029598,120]
[339447840,1727618654982,-1327.26,0.00029598,120]
[339447841,1727618655019,-1327.26,0.00029598,120]
[339447842,1727618655059,-1327.26,0.00029598,120]
[339447843,1727618655096,-1327.26,0.00029598,120]
[339447844,1727618655134,-1327.26,0.00029598,120]
[339447845,1727618655172,-1327.26,0.00029598,120]
[339447846,1727618655209,-1327.26,0.00029598,120]
[339447847,1727618655245,-1327.26,0.00029598,120]
[339447848,1727618655284,-1327.26,0.00029598,120]
[339447849,1727618655321,-1327.27423612,0.00029598,120]
[339447850,1727618655359,-1000.0,0.00029598,30]
[339447851,1727618655395,-1000.0,0.00029598,30]
[339447852,1727618655429,-1000.0,0.00029598,30]
[339447853,1727618655463,-1000.0,0.00029598,30]
[339447854,1727618655496,-1000.0,0.00029598,30]
[339447855,1727618655529,-1000.0,0.00029598,30]
[339447856,1727618655564,-1000.0,0.00029598,30]
[339447857,1727618655597,-1000.0,0.00029598,30]
[339447858,1727618655632,-1000.0,0.00029598,30]
[339447859,1727618655666,-1000.0,0.00029598,30]
[339447860,1727618655703,-1000.0,0.00029598,30]
[339447861,1727618655738,-1000.0,0.00029598,30]
[339447862,1727618655773,-1000.0,0.00029598,30]
[339447863,1727618655808,-1000.0,0.00029598,30]
[339447864,1727618655844,-1000.0,0.00029598,30]
[339447865,1727618655878,-1000.0,0.00029598,30]
[339447866,1727618655914,-1000.0,0.00029598,30]
[339447867,1727618655949,-1000.0,0.00029598,30]
[339447868,1727618655986,-1000.0,0.00029598,30]
[339447869,1727618656022,-1000.0,0.00029598,30]
[339447870,1727618656060,-1000.0,0.00029598,30]
[339447871,1727618656097,-1000.0,0.00029598,30]
[339447872,1727618656133,-1000.0,0.00029598,30]
[339447873,1727618656171,-1000.0,0.00029598,30]
[339447874,1727618656209,-1777.438478,0.00029598,30]
[339447875,1727618656246,-150.1,0.00029598,40]
[339447876,1727618656283,-250.0,0.00029598,30]
[339447877,1727618656320,-287.60192,0.00029598,30]
[339447878,1727618656356,-150.0,0.00029598,30]
[339447879,1727618662254,931.0,0.00029598,30]
[339447880,1727618680755,-2000.0,0.00037,30]
[339447881,1727618680794,-3007.042154,0.0003701,30]
[339447882,1727618680835,-150.0,0.00039008,30]
[339447883,1727618680873,-150.0,0.00039041,30]
[339447884,1727618680910,-150.0,0.00039058,30]
[339447885,1727618680949,-1256.51,0.00039079,30]
[339447886,1727618680991,-1256.52,0.00039083,30]
[339447887,1727618681032,-150.0,0.00039112,30]
[339447888,1727618681071,-2500.0,0.00039164,30]
[339447889,1727618681110,-150.0,0.00039308,30]
[339447890,1727618681150,-150.0,0.00039423,30]
[339447891,1727618681189,-150.0,0.00039433,30]
[339447892,1727618681230,-150.0,0.00039591,30]
[339447893,1727618681628,-150.0,0.00039592,30]
[339447894,1727618681664,-150.0,0.00039602,30]
[339447895,1727618681699,-150.0,0.00039778,30]
[339447896,1727618681734,-2000.0,0.000398,41]
[339447897,1727618681770,-3007.042154,0.0003981,41]
[339447898,1727618681805,-150.0,0.00039871,30]
[339447899,1727618681842,-150.0,0.00039886,30]
[339447900,1727618681878,-1256.51,0.00039989,30]
[339447901,1727618681916,-999560.56451594,0.0004,120]
[339447902,1727618681954,-1000000.0,0.0004,120]
[339447903,1727618681992,-1000000.0,0.0004,120]
[339447904,1727618682027,-982205.81117606,0.0004,120]
[339447905,1727618707269,-414.56618709,0.00035931,30]
[339447906,1727618707324,-414.56618709,0.00036173,30]
[339447907,1727618707372,-414.56618709,0.00036514,30]
[339447908,1727618707421,-414.56618709,0.00036904,30]
[339447909,1727618707469,-414.56618709,0.00037211,30]
[339447910,1727618707517,-414.56618709,0.00037316,30]
[339447911,1727618707566,-414.56618709,0.00037714,30]
[339447912,1727618707615,-414.56618709,0.00037982,30]
[339447913,1727618707663,-414.56618709,0.00038142,30]
[339447914,1727618707711,-414.56618709,0.00038445,30]
[339447915,1727618707757,-414.56618709,0.00038828,30]
[339447916,1727618707806,-414.56618709,0.00039115,30]
[339447917,1727618707852,-150.0,0.00039124,30]
[339447918,1727618707898,-414.56618709,0.00039336,30]
[339447919,1727618707944,-414.56618709,0.00039656,30]
[339447920,1727618707994,-414.56618716,0.00039828,30]
[339447921,1727618708043,-17794.18882394,0.0004,120]
[339447922,1727618708088,-5204.76705012,0.0004,30]
[339447923,1727618708137,-4722.91263333,0.0004,120]
[339447924,1727618708181,-2508.0,0.0004,60]
[339447925,1727618708227,-2777.91572932,0.0004,120]
[339447926,1727618708275,-2443.92426683,0.0004,120]
[339447927,1727618708324,-1000000.0,0.0004,120]
[339447928,1727618708372,-5596.82287916,0.0004,60]
[339447929,1727618708420,-210000.0,0.0004,30]
[339447930,1727618708467,-10000.0,0.0004,120]
[339447931,1727618708511,-14621.018015,0.0004,30]
[339447932,1727618708556,-2071.16519206,0.0004,120]
[339447933,1727618708601,-456.18814132,0.0004,120]
[339447934,1727618708646,-3651.37411513,0.0004,120]
[339447935,1727618708693,-11727.42851481,0.0004,120]
[339447936,1727618708740,-314.32883595,0.0004,120]
[339447937,1727618708788,-200.0,0.0004,120]
[339447938,1727618708835,-477.12749073,0.0004,30]
[339447939,1727618708883,-2949.36821258,0.0004,30]
[339447940,1727618708930,-1487.00263831,0.0004,30]
[339447941,1727618708977,-1167.93116481,0.0004,120]
[339447942,1727618709027,-2491.34407382,0.0004,120]
[339447943,1727618709076,-1050.72004127,0.0004,32]
[339447944,1727618709128,-1000.0,0.0004,120]
[339447945,1727618709179,-5039.79517995,0.0004,30]
[339447946,1727618709230,-263.10520039,0.0004,120]
[339447947,1727618709280,-1059.91016684,0.0004,30]
[339447948,1727618709330,-500.0,0.0004,120]
[339447949,1727618709380,-10000.0,0.0004,120]
[339447950,1727618709428,-10000.0,0.0004,120]
[339447951,1727618709475,-8001.91097518,0.0004,120]
[339447952,1727618709522,-244.92802262,0.0004,30]
[339447953,1727618709568,-571.03684874,0.0004,30]
[339447954,1727618709616,-751.18906415,0.0004,120]
[339447955,1727618709664,-493.43326379,0.0004,120]
[339447956,1727618709711,-3620.58932998,0.0004,120]
[339447957,1727618709760,-17341.31409896,0.0004,120]
[339447958,1727618709807,-11005.54072338,0.0004,120]
[339447959,1727618709854,-550.23851197,0.0004,120]
[339447960,1727618709900,-173.7028659,0.0004,120]
[339447961,1727618709948,-237.96266221,0.0004,30]
[339447962,1727618709996,-1288.92152206,0.0004,120]
[339447963,1727618710044,-1104.94730596,0.0004,120]
[339447964,1727618710090,-10000.0,0.0004,120]
[339447965,1727618710140,-10000.0,0.0004,120]
[339447966,1727618710188,-517978.33810352,0.0004,120]
[339447967,1727618710244,-2977.24738064,0.0004,120]
[339447968,1727618710297,-1200.0,0.0004,120]
[339447969,1727618710348,-11000.0,0.0004,120]
[339447970,1727618710397,-500.0,0.0004,60]
[339447971,1727618710445,-3539.10148443,0.0004,120]
[339447972,1727618710495,-4092.90477552,0.0004,60]
[339447973,1727618710544,-5047.03254816,0.0004,120]
[339447974,1727618710593,-35000.0,0.0004,30]
[339447975,1727618710642,-5000.0,0.0004,30]
[339447976,1727618710693,-6824.77604119,0.0004,30]
[339447977,1727618710742,-2346.43634416,0.0004,120]
[339447978,1727618710795,-1000000.0,0.0004,120]
[339447979,1727618710846,-1000000.0,0.0004,120]
[339447980,1727618710898,-900000.0,0.0004,120]
[339447981,1727618710950,-276.0,0.0004,120]
[339447982,1727618711001,-1695.93617897,0.0004,120]
[339447983,1727618711051,-9023.15524472,0.0004,120]
[339447984,1727618711107,-90168.5255317,0.0004,30]
[339447985,1727618711806,1432.4875,9.885e-05,2]
[339447986,1727618819417,565.32,8.219e-05,2]
[339447987,1727618840338,250.0,9.835e-05,2]
[339447988,1727618870285,200.0,9.835e-05,2]
[339447989,1727618885910,510.0,0.00016438,120]
[339447990,1727618886175,510.0,0.00016712,120]
[339447991,1727618886450,510.0,0.00016986,120]
[339447992,1727618886738,510.0,0.0001726,120]
[339447993,1727618887056,510.0,0.00017534,120]
[339447994,1727618887317,510.0,0.00017808,120]
[339447995,1727618887586,510.0,0.00018082,120]
[339447996,1727618887851,510.0,0.00018356,120]
[339447997,1727618888362,510.0,0.0001863,120]
[339447998,1727618888458,510.0,0.00018904,120]
[339447999,1727618888737,510.0,0.00019178,120]
[339448000,1727618889055,510.0,0.00019452,120]
[339448001,1727618889325,510.0,0.00019726,120]
[339448002,1727618889644,318.35915455,0.0002,120]
[339448003,1727618914544,1386.31,9.835e-05,2]
[339448004,1727618993608,2277.76,9.858e-05,2]
[339448005,1727618998718,250.0,9.862e-05,2]
[339448006,1727619027153,1100.0,9.9e-05,3]
[339448020,1727619032031,-155.39,9.942e-05,2]
[339448021,1727619032042,-233.57,9.973e-05,2]
[339448022,1727619032051,-150.78,9.973e-05,2]
[339448023,1727619032061,-16473.37,9.996e-05,2]
[339448024,1727619032070,-3814.98176753,0.0001,2]
[339448025,1727619032080,-2300.0,0.0001,3]
[339448026,1727619032090,-3500.0,0.000101,3]
[339448027,1727619032099,-200.0,0.00010227,2]
[339448028,1727619032109,-302.97,0.00010288,2]
[339448029,1727619032119,-189.98,0.00010379,2]
[339448030,1727619032129,-565.32,0.0001047,2]
[339448031,1727619032139,-499.99,0.0001047,2]
[339448032,1727619032148,-1905.67,0.0001047,2]
[339448033,1727619032158,-1502.51,0.0001047,2]
[339448034,1727619032169,-150.99,0.0001047,2]
[339448035,1727619032178,-299.99,0.0001047,2]
[339448036,1727619032188,-150.0,0.00010499,2]
[339448037,1727619032200,-754.03,0.000105,2]
[339448038,1727619032210,-423.13,0.000105,2]
[339448039,1727619032220,-423.13,0.000105,2]
[339448040,1727619032230,-300.446,0.00010514,2]
[339448041,1727619032239,-188.20858322,0.00010514,2]
[339448042,1727619032248,-179.36,0.00010597,2]
[339448043,1727619032258,-847.8,0.00010615,2]
[339448044,1727619032267,-150.99,0.00010615,2]
[339448045,1727619032276,-1320.14,0.00010615,2]
[339448046,1727619032286,-1172.44,0.00010615,2]
[339448047,1727619032295,-286.56932907,0.0001088,2]
[339448048,1727619032305,-286.56932907,0.00010881,2]
[339448049,1727619032314,-200.0,0.00010882,2]
[339448050,1727619032323,-4045.7538,0.00010886,2]
[339448051,1727619032333,-286.56932907,0.00010887,2]
[339448052,1727619032342,-286.56932907,0.00010892,2]
[339448053,1727619032351,-286.56932907,0.00010893,2]
[339448054,1727619032361,-200.0,0.00010894,2]
[339448055,1727619032370,-440.99605398,0.00010897,2]
[339448056,1727619032380,-440.99605398,0.00010898,2]
[339448057,1727619032390,-440.99605398,0.00010898,2]
[339448058,1727619032399,-2357.80715962,0.00010899,2]
[339448059,1727619032409,-1002.5141,0.00010899,2]
[339448060,1727619032420,-294.3788371,0.00010899,2]
[339448061,1727619032430,-294.37883705,0.00010899,2]
[339448062,1727619032439,-294.37883705,0.00010899,2]
[339448063,1727619032449,-294.37883705,0.00010899,2]
[339448064,1727619032459,-294.37883705,0.00010899,2]
[339448065,1727619032469,-294.37883705,0.00010899,2]
[339448066,1727619032479,-294.37883705,0.00010899,2]
[339448067,1727619032488,-294.37883705,0.00010899,2]
[339448068,1727619032498,-294.37883705,0.00010899,2]
[339448069,1727619032508,-264.31339832,0.00010899,2]
[339448070,1727619032517,-264.31339832,0.000109,2]
[339448071,1727619032527,-168.30004499,0.000109,2]
[339448072,1727619032537,-708.2,0.000109,2]
[339448073,1727619032546,-358.32,0.000109,2]
[339448074,1727619032555,-303.54,0.000109,2]
[339448075,1727619032564,-358.32,0.000109,2]
[339448076,1727619032574,-294.37883705,0.000109,2]
[339448077,1727619032584,-264.31339832,0.000109,2]
[339448078,1727619032595,-170.43,0.00010959,2]
[339448079,1727619032604,-3882.29,0.00010959,2]
[339448080,1727619032614,-180.86,0.00010959,2]
[339448081,1727619032624,-724.06,0.00010959,2]
[339448082,1727619032633,-678.4,0.00010959,2]
[339448083,1727619032642,-500.0,0.00010973,2]
[339448084,1727619032652,-500.0,0.00010973,2]
[339448085,1727619032663,-500.0,0.00010986,2]
[339448086,1727619032672,-500.0,0.00010986,2]
[339448087,1727619032681,-500.0,0.00010986,2]
[339448088,1727619032691,-500.0,0.00010986,2]
[339448089,1727619032700,-500.0,0.00010986,2]
[339448090,1727619032710,-500.0,0.00010986,2]
[339448091,1727619032719,-500.0,0.00010986,2]
[339448092,1727619032728,-500.0,0.00010986,2]
[339448093,1727619032738,-500.0,0.00010986,2]
[339448094,1727619032747,-500.0,0.00010986,2]
[339448095,1727619032756,-500.0,0.00010986,2]
[339448096,1727619032765,-500.0,0.00010986,2]
[339448097,1727619032775,-909.95,0.00010986,2]
[339448098,1727619032785,-871.29,0.00010986,2]
[339448099,1727619032794,-500.0,0.00010986,2]
[339448100,1727619032804,-1618.21,0.00010986,2]
[339448101,1727619032814,-500.0,0.00010986,2]
[339448102,1727619032823,-500.0,0.00010986,2]
[339448103,1727619032833,-500.0,0.00010986,2]
[339448104,1727619032843,-492.16801796,0.00010986,2]
[339448105,1727619032853,-500.0,0.00010986,2]
[339448106,1727619032862,-500.0,0.00010986,2]
[339448107,1727619032872,-1785.85,0.00010986,2]
[339448108,1727619032882,-500.0,0.00010986,2]
[339448109,1727619032891,-500.0,0.00010986,2]
[339448110,1727619032901,-591.59,0.00010986,2]
[339448111,1727619032910,-2584.83,0.00010986,2]
[339448112,1727619032921,-500.0,0.00010986,2]
[339448113,1727619032930,-500.0,0.00010986,2]
[339448114,1727619032939,-500.0,0.00010986,2]
[339448115,1727619032949,-500.0,0.00010986,2]
[339448116,1727619032958,-1104.23,0.00010986,2]
[339448117,1727619032967,-500.0,0.00010986,2]
[339448118,1727619032976,-901.84,0.00010986,2]
[339448119,1727619032986,-500.0,0.00010986,2]
[339448120,1727619032995,-500.0,0.00010986,2]
[339448121,1727619033004,-500.0,0.00010986,2]
[339448122,1727619033014,-2090.15,0.00010986,2]
[339448123,1727619033023,-500.0,0.00010986,2]
[339448124,1727619033033,-500.0,0.00010986,2]
[339448125,1727619033042,-500.0,0.00010986,2]
[339448126,1727619033051,-500.0,0.00010986,2]
[339448127,1727619033061,-693.57,0.00010986,2]
[339448128,1727619033071,-1170.37,0.00010986,2]
[339448129,1727619033082,-1524.31,0.00010986,2]
[339448130,1727619033091,-500.0,0.00010986,2]
[339448131,1727619033101,-2298.63,0.00010986,2]
[339448132,1727619033110,-500.0,0.00010986,2]
[339448133,1727619033120,-500.0,0.00010986,2]
[339448134,1727619033130,-500.0,0.00010986,2]
[339448135,1727619033139,-500.0,0.00010986,2]
[339448136,1727619033148,-500.0,0.00010986,2]
[339448137,1727619033159,-1347.66,0.00010986,2]
[339448138,1727619033169,-500.0,0.00010986,2]
[339448139,1727619033179,-2567.89,0.00010986,2]
[339448140,1727619033189,-534.41,0.00010986,2]
[339448141,1727619033201,-500.0,0.00010986,2]
[339448142,1727619033211,-500.0,0.00010986,2]
[339448143,1727619033221,-500.0,0.00010986,2]
[339448144,1727619033230,-500.0,0.00010986,2]
[339448145,1727619033241,-500.0,0.00010986,2]
[339448146,1727619033250,-526.04,0.00010986,2]
[339448147,1727619033260,-801.89,0.00010986,2]
[339448148,1727619033271,-500.0,0.00010986,2]
[339448149,1727619033280,-500.0,0.00010986,2]
[339448150,1727619033290,-500.0,0.00010986,2]
[339448151,1727619033300,-500.0,0.00010986,2]
[339448152,1727619033310,-500.0,0.00010986,2]
[339448153,1727619033319,-500.0,0.00010986,2]
[339448154,1727619033329,-500.0,0.00010986,2]
[339448155,1727619033339,-500.0,0.00010986,2]
[339448156,1727619033349,-500.0,0.00010986,2]
[339448157,1727619033363,-500.0,0.00010986,2]
[339448158,1727619033373,-655.84,0.00010986,2]
[339448159,1727619033382,-152311.31816515,0.00010986,2]
[339448160,1727619033396,-7914.48,0.00010986,2]
[339448161,1727619033409,-726.67746112,0.00010986,2]
[339448162,1727619033422,-857.30470671,0.00010986,2]
[339448163,1727619033435,-7378.9683345,0.00010986,2]
[339448164,1727619033446,-2300.0,0.00010986,2]
[339448165,1727619033473,-2414.07668284,0.00010986,2]
[339448166,1727619033485,-2300.0,0.00010986,2]
[339448167,1727619033503,-4993.424,0.00010986,2]
[339448168,1727619034223,-7098.22734583,0.00010986,2]
[339448169,1727619034236,-6817.17459968,0.00010986,2]
[339448170,1727619034248,-926.43635877,0.00010986,2]
[339448171,1727619034261,-256.41264469,0.00010986,2]
[339448172,1727619034274,-3949.7614307,0.00010986,2]
[339448173,1727619034286,-415.98592689,0.00010986,2]
[339448174,1727619034304,-904.37728165,0.00010986,2]
[339448175,1727619034315,-854.80884198,0.00010986,2]
[339448176,1727619034327,-407.90759747,0.00010986,2]
[339448185,1727619038339,-1001.49052096,0.000102,3]
[339448186,1727619038352,-3698.50947904,0.000102,3]
[339448187,1727619038361,-5900.0,0.000103,3]
[339448188,1727619038371,-1100.0,0.000104,3]
[339448189,1727619038381,-500.0,0.00010986,2]
[339448190,1727619038391,-500.0,0.00010986,2]
[339448191,1727619038400,-3449.03996266,0.00010986,2]
[339448192,1727619038411,-484.0774728,0.00010986,2]
[339448193,1727619038429,-2000.0,0.00010986,2]
[339448247,1727619040196,-1100.0,0.000105,3]
[339448248,1727619040206,-56556.54118656,0.00010986,2]
[339448249,1727619040218,-153.83,0.00010987,2]
[339448250,1727619040227,-500.0,0.00010996,2]
[339448251,1727619040237,-500.0,0.00010996,2]
[339448252,1727619040246,-591.59,0.00010996,2]
[339448253,1727619040255,-1104.23,0.00010996,2]
[339448254,1727619040264,-500.0,0.00010996,2]
[339448255,1727619040274,-2090.15,0.00010996,2]
[339448256,1727619040283,-693.57,0.00010996,2]
[339448257,1727619040293,-1170.37,0.00010996,2]
[339448258,1727619040303,-2298.63,0.00010996,2]
[339448259,1727619040312,-237.73188341,0.00010996,2]
[339448260,1727619040321,-500.0,0.00010996,2]
[339448261,1727619040331,-500.0,0.00010996,2]
[339448262,1727619040340,-1347.66,0.00010996,2]
[339448263,1727619040350,-500.0,0.00010996,2]
[339448264,1727619040359,-500.0,0.00010996,2]
[339448265,1727619040369,-500.0,0.00010996,2]
[339448266,1727619040378,-526.04,0.00010996,2]
[339448267,1727619040387,-801.89,0.00010996,2]
[339448268,1727619040396,-500.0,0.00010996,2]
[339448269,1727619040406,-500.0,0.00010996,2]
[339448271,1727619040415,-500.0,0.00010996,2]
[339448272,1727619040424,-500.0,0.00010996,2]
[339448274,1727619040433,-500.0,0.00010996,2]
[339448276,1727619040442,-500.0,0.00010996,2]
[339448277,1727619040451,-433.59560896,0.00010996,2]
[339448279,1727619040461,-500.0,0.00010996,2]
[339448280,1727619040469,-500.0,0.00010996,2]
[339448281,1727619040478,-500.0,0.00010996,2]
[339448282,1727619040487,-500.0,0.00010996,2]
[339448283,1727619040496,-501.76660695,0.00010996,2]
[339448284,1727619040505,-500.0,0.00010996,2]
[339448285,1727619040514,-500.0,0.00010996,2]
[339448286,1727619040523,-500.0,0.00010996,2]
[339448287,1727619040532,-500.0,0.00010996,2]
[339448288,1727619040540,-500.0,0.00010996,2]
[339448289,1727619040549,-500.0,0.00010996,2]
[339448290,1727619040558,-500.0,0.00010996,2]
[339448291,1727619040567,-500.0,0.00010996,2]
[339448292,1727619040575,-500.0,0.00010997,2]
[339448293,1727619040584,-500.0,0.00010997,2]
[339448294,1727619040593,-500.0,0.00010997,2]
[339448295,1727619040602,-500.0,0.00010997,2]
[339448296,1727619040611,-500.0,0.00010997,2]
[339448297,1727619040620,-500.0,0.00010997,2]
[339448298,1727619040628,-454.31,0.00010997,2]
[339448299,1727619040637,-500.0,0.00010997,2]
[339448300,1727619040646,-500.0,0.00010997,2]
[339448301,1727619040655,-500.0,0.00010997,2]
[339448302,1727619040664,-500.0,0.00010997,2]
[339448303,1727619040673,-500.0,0.00010997,2]
[339448304,1727619040682,-20000.0,0.00010997,2]
[339448305,1727619040691,-500.0,0.00010997,2]
[339448306,1727619040700,-500.0,0.00010997,2]
[339448307,1727619040709,-500.0,0.00010997,2]
[339448308,1727619040718,-500.0,0.00010997,2]
[339448309,1727619040727,-500.0,0.00010997,2]
[339448310,1727619040737,-500.0,0.00010997,2]
[339448311,1727619040745,-500.0,0.00010997,2]
[339448312,1727619040754,-500.0,0.00010997,2]
[339448313,1727619040764,-550.01091709,0.00010997,2]
[339448314,1727619040773,-500.0,0.00010997,2]
[339448315,1727619040782,-500.0,0.00010997,2]
[339448316,1727619040791,-500.0,0.00010997,2]
[339448317,1727619040800,-500.0,0.00010997,2]
[339448318,1727619040810,-912.95,0.00010997,2]
[339448319,1727619040819,-500.0,0.00010997,2]
[339448320,1727619040827,-500.0,0.00010997,2]
[339448321,1727619040837,-500.0,0.00010997,2]
[339448322,1727619040846,-500.0,0.00010997,2]
[339448323,1727619040855,-500.0,0.00010997,2]
[339448324,1727619040864,-500.0,0.00010997,2]
[339448325,1727619040873,-500.0,0.00010997,2]
[339448326,1727619040882,-500.0,0.00010997,2]
[339448327,1727619040891,-500.0,0.00010997,2]
[339448328,1727619040900,-500.0,0.00010997,2]
[339448329,1727619040909,-500.0,0.00010997,2]
[339448330,1727619040918,-500.0,0.00010997,2]
[339448331,1727619040928,-500.0,0.00010997,2]
[339448332,1727619040937,-500.0,0.00010997,2]